[Event "*** Titled Tuesday 3|2 Blitz"]
[Site "Chess.com"]
[Date "2014.12.30"]
[Round "3"]
[White "Gevorg_Harutjunyan"]
[Black "DARIO555"]
[Result "1-0"]
[WhiteElo "2430"]
[BlackElo "2216"]
[TimeControl "180+2"]
[EndTime "11:31:42 PST"]
[Termination "Gevorg_Harutjunyan won by resignation"]

1. e4 {[%clk 0:03:00]} 1... e5 {[%clk 0:02:56.9]} 2. Nf3 {[%clk 0:02:59.9]} 2...
Nc6 {[%clk 0:02:58]} 3. Bb5 {[%clk 0:03:00.7]} 3... a6 {[%clk 0:02:59.2]} 4. Ba4
{[%clk 0:03:01.7]} 4... Nf6 {[%clk 0:03:00.4]} 5. O-O {[%clk 0:03:02.9]} 5...
Nxe4 {[%clk 0:03:01.7]} 6. d4 {[%clk 0:03:03.6]} 6... b5 {[%clk 0:03:02.8]} 7.
Bb3 {[%clk 0:03:05]} 7... d5 {[%clk 0:03:04]} 8. dxe5 {[%clk 0:03:06.5]} 8...
Be6 {[%clk 0:03:04.8]} 9. Be3 {[%clk 0:03:06.8]} 9... Be7 {[%clk 0:03:04]} 10.
c3 {[%clk 0:03:07.3]} 10... O-O {[%clk 0:03:02.6]} 11. Nbd2 {[%clk 0:03:06.5]}
11... Nxd2 {[%clk 0:02:52.2]} 12. Qxd2 {[%clk 0:03:06]} 12... Qd7 {[%clk
0:02:53.3]} 13. Rfd1 {[%clk 0:02:56.4]} 13... Rad8 {[%clk 0:02:49.3]} 14. Bf4
{[%clk 0:02:50.9]} 14... Na5 {[%clk 0:02:42.5]} 15. Bc2 {[%clk 0:02:50.5]} 15...
Bf5 {[%clk 0:02:38.2]} 16. Bxf5 {[%clk 0:02:37.5]} 16... Qxf5 {[%clk 0:02:38.7]}
17. Nd4 {[%clk 0:02:39.2]} 17... Qd7 {[%clk 0:02:34.1]} 18. Qe2 {[%clk
0:02:30.3]} 18... Rfe8 {[%clk 0:01:51.7]} 19. e6 {[%clk 0:02:20.4]} 19... fxe6
{[%clk 0:01:51.8]} 20. Qxe6+ {[%clk 0:02:21.4]} 20... Kh8 {[%clk 0:01:43.7]} 21.
Qxa6 {[%clk 0:02:21.2]} 21... Nc4 {[%clk 0:01:38.4]} 22. Qxb5 {[%clk 0:02:12.9]}
22... Qxb5 {[%clk 0:01:18.2]} 23. Nxb5 {[%clk 0:02:14.8]} 23... c6 {[%clk
0:01:18.9]} 24. Nc7 {[%clk 0:02:13.4]} 24... Rf8 {[%clk 0:01:07.3]} 25. Ne6
{[%clk 0:02:13.6]} 25... Nxb2 {[%clk 0:00:53.2]} 26. Be5 {[%clk 0:01:44.4]}
26... Nc4 {[%clk 0:00:50.5]} 27. Bxg7+ {[%clk 0:01:44.7]} 1-0

[Event "*** Titled Tuesday 3|2 Blitz"]
[Site "Chess.com"]
[Date "2014.12.30"]
[Round "3"]
[White "FairChess_on_YouTube"]
[Black "David_Klein"]
[Result "1-0"]
[WhiteElo "2711"]
[BlackElo "2369"]
[TimeControl "180+2"]
[EndTime "11:31:59 PST"]
[Termination "FairChess_on_YouTube won by resignation"]

1. e4 {[%clk 0:02:56.7]} 1... e6 {[%clk 0:02:54]} 2. d4 {[%clk 0:02:56.3]} 2...
d5 {[%clk 0:02:55]} 3. Nc3 {[%clk 0:02:57.9]} 3... Bb4 {[%clk 0:02:55]} 4. exd5
{[%clk 0:02:57.4]} 4... exd5 {[%clk 0:02:56.1]} 5. Bd3 {[%clk 0:02:58.9]} 5...
c6 {[%clk 0:02:57.3]} 6. Bf4 {[%clk 0:02:54]} 6... Ne7 {[%clk 0:02:56.4]} 7. Qh5
{[%clk 0:02:53.6]} 7... Bd6 {[%clk 0:02:52.8]} 8. Bg3 {[%clk 0:02:50.3]} 8...
Bxg3 {[%clk 0:02:43.2]} 9. hxg3 {[%clk 0:02:50.9]} 9... Nd7 {[%clk 0:02:44.7]}
10. O-O-O {[%clk 0:02:36.4]} 10... Nf6 {[%clk 0:02:41.8]} 11. Qg5 {[%clk
0:02:37.2]} 11... Kf8 {[%clk 0:02:01.6]} 12. Re1 {[%clk 0:02:28.5]} 12... h6
{[%clk 0:02:01.1]} 13. Qd2 {[%clk 0:02:27.7]} 13... Nf5 {[%clk 0:01:50.5]} 14.
Nge2 {[%clk 0:02:17.1]} 14... Bd7 {[%clk 0:01:46.1]} 15. f3 {[%clk 0:02:17.8]}
15... Qc7 {[%clk 0:01:43.5]} 16. g4 {[%clk 0:02:17.5]} 16... Nd6 {[%clk
0:01:37.7]} 17. g5 {[%clk 0:02:16.4]} 17... Ng8 {[%clk 0:01:39.3]} 18. Qf4
{[%clk 0:02:03.4]} 18... Ne8 {[%clk 0:01:40.1]} 19. Qh4 {[%clk 0:01:57.6]} 19...
a5 {[%clk 0:01:17]} 20. Nf4 {[%clk 0:01:55.8]} 20... a4 {[%clk 0:01:15.7]} 21.
a3 {[%clk 0:01:55]} 21... b5 {[%clk 0:01:15.7]} 22. Qg3 {[%clk 0:01:47.5]} 22...
Qd6 {[%clk 0:01:02.6]} 23. Ng6+ {[%clk 0:01:43.5]} 23... Qxg6 {[%clk 0:00:50.3]}
24. Bxg6 {[%clk 0:01:43.4]} 24... fxg6 {[%clk 0:00:52.2]} 25. Qf4+ {[%clk
0:01:43.8]} 25... Bf5 {[%clk 0:00:49.5]} 26. g4 {[%clk 0:01:39.4]} 26... hxg5
{[%clk 0:00:50.7]} 27. Rxe8+ {[%clk 0:01:38.9]} 27... Rxe8 {[%clk 0:00:37.4]}
28. Qd6+ {[%clk 0:01:39.5]} 28... Kf7 {[%clk 0:00:38.2]} 29. Rxh8 {[%clk
0:01:40.2]} 1-0

[Event "*** Titled Tuesday 3|2 Blitz"]
[Site "Chess.com"]
[Date "2014.12.30"]
[Round "3"]
[White "DanielRensch"]
[Black "ItalianMachine"]
[Result "1-0"]
[WhiteElo "2349"]
[BlackElo "2166"]
[TimeControl "180+2"]
[EndTime "11:32:33 PST"]
[Termination "DanielRensch won by resignation"]

1. d4 {[%clk 0:02:57.1]} 1... Nf6 {[%clk 0:02:57.2]} 2. Nc3 {[%clk 0:02:57.6]}
2... d5 {[%clk 0:02:56.4]} 3. Bf4 {[%clk 0:02:56.7]} 3... e6 {[%clk 0:02:52.8]}
4. e3 {[%clk 0:02:55.6]} 4... c5 {[%clk 0:02:50]} 5. Nf3 {[%clk 0:02:55.7]} 5...
Nc6 {[%clk 0:02:48.9]} 6. Bd3 {[%clk 0:02:55]} 6... Be7 {[%clk 0:02:47.7]} 7.
O-O {[%clk 0:02:54.4]} 7... O-O {[%clk 0:02:48.2]} 8. a3 {[%clk 0:02:52.7]} 8...
h6 {[%clk 0:02:38]} 9. dxc5 {[%clk 0:02:52.4]} 9... Bxc5 {[%clk 0:02:38.1]} 10.
e4 {[%clk 0:02:52.7]} 10... dxe4 {[%clk 0:02:36]} 11. Nxe4 {[%clk 0:02:53.2]}
11... Be7 {[%clk 0:02:34.9]} 12. Qe2 {[%clk 0:02:45]} 12... Qb6 {[%clk
0:02:32.3]} 13. Nxf6+ {[%clk 0:02:08.1]} 13... Bxf6 {[%clk 0:02:30.9]} 14. Qe4
{[%clk 0:02:09.7]} 14... g6 {[%clk 0:02:27.4]} 15. Bxh6 {[%clk 0:02:08.1]} 15...
Rd8 {[%clk 0:02:28.4]} 16. h4 {[%clk 0:02:07.5]} 16... e5 {[%clk 0:02:15.7]} 17.
h5 {[%clk 0:01:35]} 17... Bf5 {[%clk 0:02:14.1]} 18. Qe2 {[%clk 0:01:35.2]}
18... e4 {[%clk 0:02:05.5]} 19. Bxe4 {[%clk 0:01:33.1]} 19... Re8 {[%clk
0:02:06.2]} 20. Nd2 {[%clk 0:01:06.5]} 20... Qxb2 {[%clk 0:01:13.4]} 21. hxg6
{[%clk 0:01:05.2]} 21... Nd4 {[%clk 0:00:24.9]} 22. gxf7+ {[%clk 0:01:03.3]}
22... Kxf7 {[%clk 0:00:26]} 23. Qh5+ {[%clk 0:00:59.8]} 1-0

[Event "*** Titled Tuesday 3|2 Blitz"]
[Site "Chess.com"]
[Date "2014.12.30"]
[Round "3"]
[White "rhungaski"]
[Black "FlySooHigh"]
[Result "1-0"]
[WhiteElo "2405"]
[BlackElo "2357"]
[TimeControl "180+2"]
[EndTime "11:32:47 PST"]
[Termination "rhungaski won by resignation"]

1. e4 {[%clk 0:03:00]} 1... d5 {[%clk 0:02:58.5]} 2. exd5 {[%clk 0:02:59.5]}
2... Nf6 {[%clk 0:02:59.5]} 3. d4 {[%clk 0:02:59.8]} 3... Nxd5 {[%clk 0:03:00]}
4. c4 {[%clk 0:03:01]} 4... Nb6 {[%clk 0:03:00.6]} 5. Nf3 {[%clk 0:03:01.9]}
5... g6 {[%clk 0:03:01.3]} 6. c5 {[%clk 0:03:01.9]} 6... Nd5 {[%clk 0:03:01.2]}
7. Nc3 {[%clk 0:03:03.3]} 7... Bg7 {[%clk 0:03:02.4]} 8. Bc4 {[%clk 0:03:04.7]}
8... c6 {[%clk 0:03:03.5]} 9. O-O {[%clk 0:03:04.9]} 9... Be6 {[%clk 0:03:04.2]}
10. Qb3 {[%clk 0:03:04]} 10... Nxc3 {[%clk 0:03:04.7]} 11. bxc3 {[%clk
0:02:38.1]} 11... Bxc4 {[%clk 0:03:04.7]} 12. Qxc4 {[%clk 0:02:40]} 12... O-O
{[%clk 0:03:05.5]} 13. Re1 {[%clk 0:02:34.3]} 13... Nd7 {[%clk 0:03:00.4]} 14.
Bg5 {[%clk 0:02:32.5]} 14... Re8 {[%clk 0:02:52.9]} 15. Rab1 {[%clk 0:02:30.7]}
15... b6 {[%clk 0:02:40.7]} 16. cxb6 {[%clk 0:02:30.1]} 16... axb6 {[%clk
0:02:35.4]} 17. a4 {[%clk 0:02:25.5]} 17... Rc8 {[%clk 0:02:10.1]} 18. Re2
{[%clk 0:02:26.3]} 18... c5 {[%clk 0:01:54.5]} 19. d5 {[%clk 0:02:23.1]} 19...
Nf6 {[%clk 0:01:53.9]} 20. Rd1 {[%clk 0:02:20.3]} 20... e6 {[%clk 0:01:38]} 21.
d6 {[%clk 0:02:18]} 21... Rc6 {[%clk 0:01:21.2]} 22. Qb5 {[%clk 0:01:47.6]}
22... Qd7 {[%clk 0:00:50.6]} 23. Ne5 {[%clk 0:01:25.4]} 23... Rxd6 {[%clk
0:00:51.7]} 24. Qxd7 {[%clk 0:01:26.4]} 24... Nxd7 {[%clk 0:00:52.8]} 25. Rxd6
{[%clk 0:01:26.8]} 25... Nxe5 {[%clk 0:00:53.6]} 26. Rxb6 {[%clk 0:01:23.1]}
26... Ra8 {[%clk 0:00:46.8]} 27. Ra2 {[%clk 0:01:22.8]} 27... h6 {[%clk
0:00:45.5]} 28. Bf4 {[%clk 0:01:23.4]} 28... Nd3 {[%clk 0:00:36.7]} 29. Rb8+
{[%clk 0:01:22.2]} 29... Rxb8 {[%clk 0:00:36.5]} 30. Bxb8 {[%clk 0:01:24.1]}
30... c4 {[%clk 0:00:26]} 31. a5 {[%clk 0:01:20.1]} 1-0

[Event "*** Titled Tuesday 3|2 Blitz"]
[Site "Chess.com"]
[Date "2014.12.30"]
[Round "3"]
[White "GM_Barcenilla"]
[Black "bugsbunny444"]
[Result "1-0"]
[WhiteElo "2572"]
[BlackElo "2230"]
[TimeControl "180+2"]
[EndTime "11:33:33 PST"]
[Termination "GM_Barcenilla won by resignation"]

1. e4 {[%clk 0:02:32.9]} 1... e6 {[%clk 0:02:59]} 2. c4 {[%clk 0:02:32.5]} 2...
d5 {[%clk 0:03:00.2]} 3. cxd5 {[%clk 0:02:32.8]} 3... exd5 {[%clk 0:03:02.1]} 4.
e5 {[%clk 0:02:33.9]} 4... c5 {[%clk 0:03:00.3]} 5. f4 {[%clk 0:02:35.2]} 5...
Nc6 {[%clk 0:03:00.1]} 6. Nf3 {[%clk 0:02:36.7]} 6... Bg4 {[%clk 0:02:33.8]} 7.
Bb5 {[%clk 0:02:35.9]} 7... Ne7 {[%clk 0:02:22.4]} 8. Nc3 {[%clk 0:02:33]} 8...
a6 {[%clk 0:02:22.5]} 9. Be2 {[%clk 0:02:32.3]} 9... d4 {[%clk 0:02:22.2]} 10.
Ne4 {[%clk 0:02:31.3]} 10... Nd5 {[%clk 0:02:13.3]} 11. d3 {[%clk 0:02:32.4]}
11... Be7 {[%clk 0:01:27.8]} 12. Nxd4 {[%clk 0:02:27.9]} 12... Bxe2 {[%clk
0:01:04.3]} 13. Nxe2 {[%clk 0:02:28.8]} 13... Ndb4 {[%clk 0:01:05.8]} 14. Nf2
{[%clk 0:02:25.4]} 14... O-O {[%clk 0:00:57.6]} 15. O-O {[%clk 0:02:25.7]} 15...
Qd7 {[%clk 0:00:55.7]} 16. a3 {[%clk 0:02:22.4]} 16... Nd5 {[%clk 0:00:54.3]}
17. Ne4 {[%clk 0:02:23.6]} 17... Rad8 {[%clk 0:00:49.4]} 18. Rf3 {[%clk
0:02:21]} 18... f6 {[%clk 0:00:39.5]} 19. exf6 {[%clk 0:02:07.2]} 19... Nxf6
{[%clk 0:00:41.1]} 20. Qb3+ {[%clk 0:02:07.5]} 20... Qd5 {[%clk 0:00:27.6]} 21.
Qxd5+ {[%clk 0:01:32.5]} 21... Rxd5 {[%clk 0:00:28.6]} 22. Nf2 {[%clk
0:01:33.2]} 22... Rfd8 {[%clk 0:00:20.6]} 23. Be3 {[%clk 0:01:31.7]} 23... Na5
{[%clk 0:00:17.1]} 24. Re1 {[%clk 0:01:26.7]} 24... b5 {[%clk 0:00:18.3]} 25. g4
{[%clk 0:01:19.5]} 25... h6 {[%clk 0:00:18.1]} 26. h4 {[%clk 0:01:18.7]} 26...
c4 {[%clk 0:00:18.7]} 27. Bb6 {[%clk 0:01:06.8]} 27... cxd3 {[%clk 0:00:14.5]}
28. Nc3 {[%clk 0:01:08.1]} 28... Bc5 {[%clk 0:00:11.5]} 29. Nxd5 {[%clk
0:01:06.4]} 29... Rxd5 {[%clk 0:00:09.5]} 30. Bxc5 {[%clk 0:01:04.3]} 30... Rxc5
{[%clk 0:00:10.4]} 31. Nxd3 {[%clk 0:01:05.5]} 31... Rc2 {[%clk 0:00:11.3]} 32.
g5 {[%clk 0:01:06.5]} 32... Ng4 {[%clk 0:00:11.9]} 33. g6 {[%clk 0:01:05.9]}
33... Nf6 {[%clk 0:00:12.2]} 34. Rfe3 {[%clk 0:01:07.2]} 34... Kf8 {[%clk
0:00:12.6]} 35. Ne5 {[%clk 0:01:05.5]} 35... Rd2 {[%clk 0:00:10.4]} 36. Ng4
{[%clk 0:01:01.7]} 1-0

[Event "*** Titled Tuesday 3|2 Blitz"]
[Site "Chess.com"]
[Date "2014.12.30"]
[Round "3"]
[White "Dr-Bassem"]
[Black "VSERGUEI"]
[Result "0-1"]
[WhiteElo "2354"]
[BlackElo "2278"]
[TimeControl "180+2"]
[EndTime "11:33:41 PST"]
[Termination "VSERGUEI won on time"]

1. e4 {[%clk 0:02:58.2]} 1... e6 {[%clk 0:02:58.6]} 2. d3 {[%clk 0:02:58.6]}
2... d5 {[%clk 0:03:00.2]} 3. Nd2 {[%clk 0:02:59.8]} 3... Nf6 {[%clk 0:03:01.6]}
4. Ngf3 {[%clk 0:03:01.1]} 4... b6 {[%clk 0:03:02.9]} 5. g3 {[%clk 0:03:01.5]}
5... dxe4 {[%clk 0:03:03.8]} 6. dxe4 {[%clk 0:03:02.1]} 6... Bb7 {[%clk
0:03:05.1]} 7. Qe2 {[%clk 0:03:01.8]} 7... Nc6 {[%clk 0:03:05]} 8. c3 {[%clk
0:02:59.9]} 8... a5 {[%clk 0:03:03.9]} 9. Bg2 {[%clk 0:02:49.7]} 9... Ba6 {[%clk
0:03:03.9]} 10. Nc4 {[%clk 0:02:50.4]} 10... Bc5 {[%clk 0:03:01.3]} 11. O-O
{[%clk 0:02:49.1]} 11... h6 {[%clk 0:02:56.5]} 12. e5 {[%clk 0:02:42.9]} 12...
Nd5 {[%clk 0:02:56.5]} 13. a4 {[%clk 0:02:40.6]} 13... Qe7 {[%clk 0:02:54.8]}
14. Rd1 {[%clk 0:02:37]} 14... O-O {[%clk 0:02:48.8]} 15. Qe4 {[%clk 0:02:34.7]}
15... Rfd8 {[%clk 0:02:48.9]} 16. Bf1 {[%clk 0:02:29.6]} 16... Rd7 {[%clk
0:02:34.3]} 17. Bd3 {[%clk 0:02:25.1]} 17... f5 {[%clk 0:02:12.1]} 18. exf6
{[%clk 0:02:24.9]} 18... Qxf6 {[%clk 0:02:12.7]} 19. Kg2 {[%clk 0:01:16.7]}
19... Rad8 {[%clk 0:02:06.2]} 20. Qh7+ {[%clk 0:01:04]} 20... Kf8 {[%clk
0:02:00.8]} 21. Re1 {[%clk 0:00:45.2]} 21... Nxc3 {[%clk 0:01:48]} 22. Bf1
{[%clk 0:00:34.2]} 22... Bb7 {[%clk 0:01:25]} 23. bxc3 {[%clk 0:00:17.8]} 23...
Nd4 {[%clk 0:01:15.2]} 24. Bf4 {[%clk 0:00:16.8]} 24... Nxf3 {[%clk 0:01:10.9]}
25. Re4 {[%clk 0:00:16.7]} 25... Qf5 {[%clk 0:00:56.4]} 26. Qxf5+ {[%clk
0:00:12.4]} 26... exf5 {[%clk 0:00:56.7]} 27. Re3 {[%clk 0:00:04.4]} 27... Nd2+
{[%clk 0:00:33.6]} 0-1

[Event "*** Titled Tuesday 3|2 Blitz"]
[Site "Chess.com"]
[Date "2014.12.30"]
[Round "3"]
[White "162a54f5d"]
[Black "BeerLag"]
[Result "1-0"]
[WhiteElo "2314"]
[BlackElo "2151"]
[TimeControl "180+2"]
[EndTime "11:33:46 PST"]
[Termination "162a54f5d won by resignation"]

1. d4 {[%clk 0:03:00]} 1... Nf6 {[%clk 0:02:58.8]} 2. c4 {[%clk 0:03:00.8]} 2...
g6 {[%clk 0:03:00]} 3. g3 {[%clk 0:03:01.6]} 3... Bg7 {[%clk 0:02:55.5]} 4. Bg2
{[%clk 0:03:00.3]} 4... O-O {[%clk 0:02:56.5]} 5. Nc3 {[%clk 0:02:59.2]} 5... d6
{[%clk 0:02:58.1]} 6. Nf3 {[%clk 0:03:00.2]} 6... Nbd7 {[%clk 0:02:58.5]} 7. O-O
{[%clk 0:02:59.1]} 7... e5 {[%clk 0:02:59.1]} 8. e4 {[%clk 0:02:54.4]} 8... c6
{[%clk 0:02:59.2]} 9. h3 {[%clk 0:02:51.3]} 9... Re8 {[%clk 0:02:50.8]} 10. Be3
{[%clk 0:02:45.8]} 10... Qc7 {[%clk 0:02:44.3]} 11. Qc2 {[%clk 0:02:34.4]} 11...
Nf8 {[%clk 0:02:38.5]} 12. Rad1 {[%clk 0:02:24]} 12... Nh5 {[%clk 0:02:19.4]}
13. c5 {[%clk 0:02:12.7]} 13... dxc5 {[%clk 0:02:14.5]} 14. dxc5 {[%clk
0:02:11.3]} 14... Ne6 {[%clk 0:02:10.7]} 15. b4 {[%clk 0:02:06.3]} 15... b6
{[%clk 0:02:07.7]} 16. cxb6 {[%clk 0:01:58.5]} 16... axb6 {[%clk 0:02:09.1]} 17.
b5 {[%clk 0:01:54.9]} 17... Bb7 {[%clk 0:02:04.6]} 18. Qb2 {[%clk 0:01:49]}
18... c5 {[%clk 0:01:54.5]} 19. Nd2 {[%clk 0:01:18.3]} 19... Nd4 {[%clk
0:01:53.1]} 20. Nc4 {[%clk 0:01:16.5]} 20... f5 {[%clk 0:01:15.2]} 21. Nd5
{[%clk 0:00:54.8]} 21... Bxd5 {[%clk 0:01:11.6]} 22. exd5 {[%clk 0:00:56.1]}
22... e4 {[%clk 0:01:01]} 23. Bxd4 {[%clk 0:00:28.3]} 23... Bxd4 {[%clk
0:00:59.3]} 24. Rxd4 {[%clk 0:00:27.6]} 24... cxd4 {[%clk 0:01:01.2]} 25. Qxd4
{[%clk 0:00:28.9]} 25... Ra4 {[%clk 0:01:00.9]} 26. Rc1 {[%clk 0:00:24.2]} 26...
Rc8 {[%clk 0:00:59.8]} 27. Bf1 {[%clk 0:00:25]} 27... Nxg3 {[%clk 0:00:35.9]}
28. d6 {[%clk 0:00:25.8]} 28... Qc5 {[%clk 0:00:25.8]} 29. Qxc5 {[%clk
0:00:23.2]} 29... Rxc5 {[%clk 0:00:26.7]} 30. d7 {[%clk 0:00:21.2]} 30... Rd5
{[%clk 0:00:28]} 31. Nxb6 {[%clk 0:00:20.6]} 31... Rxd7 {[%clk 0:00:25.8]} 32.
Nxd7 {[%clk 0:00:20.2]} 32... Nxf1 {[%clk 0:00:22.3]} 33. Kxf1 {[%clk
0:00:22.1]} 33... Rxa2 {[%clk 0:00:23.9]} 1-0

[Event "*** Titled Tuesday 3|2 Blitz"]
[Site "Chess.com"]
[Date "2014.12.30"]
[Round "3"]
[White "LittlePeasant"]
[Black "UnPolarizing"]
[Result "1/2-1/2"]
[WhiteElo "2405"]
[BlackElo "2226"]
[TimeControl "180+2"]
[EndTime "11:34:33 PST"]
[Termination "Game drawn by repetition"]

1. d4 {[%clk 0:03:00]} 1... Nf6 {[%clk 0:02:50.3]} 2. Nf3 {[%clk 0:03:01.2]}
2... d5 {[%clk 0:02:44.6]} 3. c4 {[%clk 0:03:01.8]} 3... c6 {[%clk 0:02:46]} 4.
Qb3 {[%clk 0:03:02]} 4... dxc4 {[%clk 0:02:43.9]} 5. Qxc4 {[%clk 0:03:03.9]}
5... Bf5 {[%clk 0:02:44.3]} 6. g3 {[%clk 0:03:03.9]} 6... Nbd7 {[%clk 0:02:39]}
7. Bg2 {[%clk 0:03:02.6]} 7... e6 {[%clk 0:02:38.2]} 8. O-O {[%clk 0:02:59.6]}
8... Bd6 {[%clk 0:02:22.5]} 9. e3 {[%clk 0:02:55.7]} 9... O-O {[%clk 0:02:21.1]}
10. Rd1 {[%clk 0:02:56.2]} 10... Nb6 {[%clk 0:02:19.4]} 11. Qe2 {[%clk
0:02:56.8]} 11... Nfd7 {[%clk 0:02:12.5]} 12. e4 {[%clk 0:02:54.9]} 12... Bg6
{[%clk 0:02:13]} 13. Nh4 {[%clk 0:02:51.2]} 13... Qe7 {[%clk 0:02:11.7]} 14.
Nxg6 {[%clk 0:02:44.9]} 14... hxg6 {[%clk 0:02:12.6]} 15. e5 {[%clk 0:02:46.3]}
15... Bc7 {[%clk 0:02:11.4]} 16. Nc3 {[%clk 0:02:46.9]} 16... Rac8 {[%clk
0:02:06.7]} 17. Ne4 {[%clk 0:02:47.2]} 17... f5 {[%clk 0:02:06.1]} 18. Ng5
{[%clk 0:02:31.5]} 18... Nd5 {[%clk 0:02:03.8]} 19. h4 {[%clk 0:02:32.1]} 19...
Rfd8 {[%clk 0:01:36.7]} 20. Bd2 {[%clk 0:02:09]} 20... Bb6 {[%clk 0:01:36.8]}
21. Be1 {[%clk 0:01:55.5]} 21... c5 {[%clk 0:01:35.2]} 22. dxc5 {[%clk
0:01:51.5]} 22... Nxc5 {[%clk 0:01:37.1]} 23. Rac1 {[%clk 0:01:41.4]} 23... Rc6
{[%clk 0:01:13.2]} 24. b4 {[%clk 0:01:19.5]} 24... Nd7 {[%clk 0:01:12.6]} 25.
Rxc6 {[%clk 0:01:03.6]} 25... bxc6 {[%clk 0:01:11.4]} 26. b5 {[%clk 0:01:05.2]}
26... Nb8 {[%clk 0:01:10.4]} 27. a4 {[%clk 0:00:58.8]} 27... Qe8 {[%clk
0:01:03.6]} 28. Qc4 {[%clk 0:00:47.8]} 28... Kh8 {[%clk 0:01:02.7]} 29. Kh2
{[%clk 0:00:29.9]} 29... Rc8 {[%clk 0:01:01.6]} 30. Qb3 {[%clk 0:00:26.7]} 30...
cxb5 {[%clk 0:00:55.4]} 31. axb5 {[%clk 0:00:28.6]} 31... Nd7 {[%clk 0:00:54.7]}
32. f4 {[%clk 0:00:26.9]} 32... Nc5 {[%clk 0:00:51]} 33. Qa2 {[%clk 0:00:26.3]}
33... Qxb5 {[%clk 0:00:52]} 34. Nxe6 {[%clk 0:00:26.1]} 34... Ne3 {[%clk
0:00:49.7]} 35. Rb1 {[%clk 0:00:23]} 35... Qd3 {[%clk 0:00:42.6]} 36. Nxc5
{[%clk 0:00:14.2]} 36... Rxc5 {[%clk 0:00:41]} 37. Rb3 {[%clk 0:00:13.2]} 37...
Rc2 {[%clk 0:00:18.8]} 38. Rxd3 {[%clk 0:00:14.2]} 38... Rxa2 {[%clk 0:00:19.7]}
39. Rd2 {[%clk 0:00:15.9]} 39... Ng4+ {[%clk 0:00:17.1]} 40. Kh3 {[%clk
0:00:14.1]} 40... Nf2+ {[%clk 0:00:17.6]} 41. Kh2 {[%clk 0:00:13.9]} 41... Ng4+
{[%clk 0:00:18.4]} 42. Kh3 {[%clk 0:00:15.4]} 42... Nf2+ {[%clk 0:00:19.8]} 43.
Kh2 {[%clk 0:00:16.2]} 43... Ng4+ {[%clk 0:00:19.9]} 1/2-1/2

[Event "*** Titled Tuesday 3|2 Blitz"]
[Site "Chess.com"]
[Date "2014.12.30"]
[Round "3"]
[White "lexiel"]
[Black "steinitz_attack"]
[Result "1-0"]
[WhiteElo "1859"]
[BlackElo "1762"]
[TimeControl "180+2"]
[EndTime "11:34:43 PST"]
[Termination "lexiel won by checkmate"]

1. e4 {[%clk 0:03:00]} 1... d6 {[%clk 0:02:57.6]} 2. d4 {[%clk 0:02:59.2]} 2...
Nf6 {[%clk 0:02:59.1]} 3. Nc3 {[%clk 0:02:59.8]} 3... g6 {[%clk 0:03:00.7]} 4.
f4 {[%clk 0:02:58.6]} 4... Bg7 {[%clk 0:03:01.2]} 5. Nf3 {[%clk 0:02:59.4]} 5...
O-O {[%clk 0:03:01.3]} 6. Be2 {[%clk 0:02:57.7]} 6... Na6 {[%clk 0:02:49.2]} 7.
O-O {[%clk 0:02:57.7]} 7... c5 {[%clk 0:02:47.6]} 8. d5 {[%clk 0:02:57.5]} 8...
Nc7 {[%clk 0:02:47]} 9. a4 {[%clk 0:02:56.1]} 9... Bg4 {[%clk 0:02:41.3]} 10. h3
{[%clk 0:02:54.5]} 10... Bxf3 {[%clk 0:02:42]} 11. Bxf3 {[%clk 0:02:55.1]} 11...
Nd7 {[%clk 0:02:38.1]} 12. Re1 {[%clk 0:02:53]} 12... a6 {[%clk 0:02:37.5]} 13.
a5 {[%clk 0:02:49.2]} 13... Nb5 {[%clk 0:02:29.6]} 14. Qd3 {[%clk 0:02:35.8]}
14... Nd4 {[%clk 0:02:15.2]} 15. Bd1 {[%clk 0:02:31]} 15... Qc7 {[%clk
0:02:01.6]} 16. Ne2 {[%clk 0:02:17.1]} 16... c4 {[%clk 0:01:55.9]} 17. Qg3
{[%clk 0:02:13.1]} 17... Nb5 {[%clk 0:01:48.9]} 18. c3 {[%clk 0:02:11.7]} 18...
Nc5 {[%clk 0:01:45.6]} 19. Bc2 {[%clk 0:02:11]} 19... Nb3 {[%clk 0:01:33.6]} 20.
Bxb3 {[%clk 0:02:06.8]} 20... cxb3 {[%clk 0:01:35.5]} 21. Ra4 {[%clk 0:02:03.6]}
21... Rac8 {[%clk 0:01:28.6]} 22. h4 {[%clk 0:02:04]} 22... Qd7 {[%clk
0:01:24.1]} 23. Rb4 {[%clk 0:02:01.8]} 23... Qc7 {[%clk 0:01:21.8]} 24. h5
{[%clk 0:02:01.9]} 24... Qxa5 {[%clk 0:01:21.4]} 25. f5 {[%clk 0:02:02.6]} 25...
Be5 {[%clk 0:01:07.6]} 26. Bf4 {[%clk 0:01:59.6]} 26... Kg7 {[%clk 0:00:59.9]}
27. Bxe5+ {[%clk 0:01:57.6]} 27... dxe5 {[%clk 0:01:00.9]} 28. Qxe5+ {[%clk
0:01:57.1]} 28... f6 {[%clk 0:01:01.3]} 29. Qxe7+ {[%clk 0:01:20.1]} 29... Rf7
{[%clk 0:01:02.2]} 30. Qe6 {[%clk 0:01:19.7]} 30... Qa2 {[%clk 0:00:46.3]} 31.
fxg6 {[%clk 0:01:18.4]} 31... hxg6 {[%clk 0:00:44.6]} 32. hxg6 {[%clk
0:01:12.6]} 32... Rfc7 {[%clk 0:00:45.4]} 33. Nf4 {[%clk 0:01:11.2]} 33... Qxb2
{[%clk 0:00:32.2]} 34. Nh5+ {[%clk 0:00:56.1]} 34... Kxg6 {[%clk 0:00:25.2]} 35.
Qxf6+ {[%clk 0:00:20.1]} 35... Kxh5 {[%clk 0:00:25.9]} 36. g4+ {[%clk
0:00:20.8]} 36... Kxg4 {[%clk 0:00:18.6]} 37. e5+ {[%clk 0:00:21.4]} 37... Rc4
{[%clk 0:00:13.7]} 38. Re4+ {[%clk 0:00:21.4]} 38... Kg3 {[%clk 0:00:04.3]} 39.
Qf4+ {[%clk 0:00:19.9]} 39... Kh3 {[%clk 0:00:05.3]} 40. Qh4# {[%clk 0:00:20.3]}
1-0